[Event "Czech Open-GM 2022"]
[Site "Pardubice"]
[Date "2022.07.26"]
[Round "5.12"]
[White "Klabis, Rokas"]
[Black "Kulon, Klaudia"]
[Result "1-0"]
[ECO "C77"]
[WhiteElo "2382"]
[BlackElo "2286"]
[Annotator "TA"]
[PlyCount "149"]
[EventDate "2022.07.22"]
[EventType "swiss"]
[EventCountry "CZE"]
[SourceTitle "playchess.com"]
[Source "ChessBase"]
[SourceQuality "1"]
[TimeControl "40/5400+30:1800+30"]

{[%evp 13,149,4,4,1,26,17,13,17,26,0,0,0,0,0,0,0,0,-3,0,0,0,-31,-19,-9,-18,-50,-60,-54,-40,-61,-47,-87,-87,-77,-77,-78,-47,-130,-65,-73,-51,-50,-54,-51,-6,-10,-19,-19,-19,-29,0,0,0,-16,-8,-19,0,-85,0,-21,-30,-89,-86,-86,-97,-116,-21,-15,-31,-17,-17,-36,-31,-35,0,0,0,0,249,231,222,214,168,10,878,834,29973,29974,29978,29979,29979,485,29980,29981,29981,29962,398,338,29978,29980,29980,29981,29981,29982,29982,29982,29978,29972,29972,29973,29972,29973,29973,29974,29973,29975,29975,29975,29971,29961,29975,29971,29982,29983,29980,29981,29995,29994,29994,29995,29995,0,29983,29984,29995,29996,29997,29998]} 1. e4 {[%emt 0:00:04]} e5 {[%emt 0:00:05]} 2. Nf3 {[%emt 0:00:10]} Nc6 {[%emt 0:00:05]} 3. Bb5 {[%emt 0:00:24]} a6 {[%emt 0:00:06]} 4. Ba4 {[%emt 0:00:04]} Nf6 {[%emt 0:00:24]} 5. d3 {[%emt 0:00:28]} d6 {[%emt 0:01:10]} 6. c4 {[%emt 0:00:32]} g6 {[%emt 0:01:55]} 7. Nc3 {[%emt 0:00:18]} Bg7 {[%emt 0:00:05]} 8. Nd5 {[%emt 0:00:15] C77: Ruy Lopez: 3...a6 4 Ba4 Nf6, unusual lines.} h6 {[%emt 0:03:16]} 9. Nb4 {[%emt 0:00:12]} Bd7 {[%emt 0:00:45]} 10. Nxc6 {[%emt 0:00:06] The position is equal.} bxc6 {[%emt 0:00:02] [#]} 11. Bd2 $146 {[%emt 0:14:05][%cal Oc4c5]} ({Predecessor:} 11. c5 O-O 12. O-O Re8 13. Re1 d5 14. b4 a5 15. a3 axb4 16. axb4 dxe4 17. dxe4 Nxe4 {1-0 (33) Kobo,O (2460)-Sokolovsky,Y (2472) Jerusalem 2021}) 11... c5 {[%emt 0:07:31]} 12. O-O O-O {[%emt 0:00:47]} 13. b4 {[%emt 0:14:45]} cxb4 {[%emt 0:02:58]} 14. Bxb4 {[%emt 0:00:28]} Rb8 {[%emt 0:01:04]} 15. Bd2 {[%emt 0:01:47]} Nh5 {[%emt 0:03:24]} 16. Bxd7 {[%emt 0:18:24]} Qxd7 {[%emt 0:00:03]} 17. Qc1 {[%emt 0:00:07]} Nf4 {[%emt 0:02:29]} 18. Bxf4 {[%emt 0:09:56]} exf4 {[%emt 0:00:18]} 19. d4 {[%emt 0:00:36]} g5 {[%emt 0:01:17]} 20. h3 {[%emt 0:11:21]} c5 {[%emt 0:09:21]} 21. Qa3 {[%emt 0:03:23]} cxd4 {[%emt 0:18:10]} 22. Qxa6 {[%emt 0:00:09]} Qc7 {[%emt 0:03:43]} 23. Rab1 {[%emt 0:06:00]} Qc5 {[%emt 0:04:32]} 24. Rxb8 {[%emt 0:02:22]} Rxb8 {[%emt 0:00:02]} 25. Qa4 {[%emt 0:00:28]} (25. Nd2 $15) 25... Bf6 {[%emt 0:02:20]} (25... d3 $17 {Hoping for ...Bc3.} 26. Nd2 Rb2) 26. Qc2 {[%emt 0:03:03]} Qa3 {[%emt 0:03:19]} 27. Rb1 {[%emt 0:06:04]} Rxb1+ {[%emt 0:01:16]} 28. Qxb1 $15 {[%emt 0:00:03][%mdl 4096] Endgame KQB-KQN} d3 {[%emt 0:00:45]} (28... Kg7 $5 {[%cal Rd4d3]} 29. Ne1 Qc3 $17) 29. c5 $1 {[%emt 0:04:06]} dxc5 {[%emt 0:01:30]} 30. Qb8+ $1 {[%emt 0:00:04]} Kh7 {[%emt 0:08:28]} 31. Qd6 {[%emt 0:00:37]} Bg7 {[%emt 0:02:51]} (31... Ba1 $5 {[%cal Ra3c1]} 32. Kh2 Qxa2 33. Qxd3 Kg7 $17) 32. Qd5 {[%emt 0:00:08]} Kg8 {[%emt 0:11:13]} 33. e5 {[%emt 0:00:44]} Qa6 $36 {[%emt 0:04:23][%mdl 2048] Black is pushing.} 34. Nd2 {[%emt 0:00:47] Against c4} Qa5 {[%emt 0:02:05]} 35. Nf3 {[%emt 0:00:51]} (35. e6 $11 {keeps the balance.} Qxd2 36. exf7+ Kf8 37. Qxc5+ Kxf7 38. Qd5+ Kf8 39. Qd8+ Kf7 40. Qd5+ Kg6 41. Qe4+ Kh5 42. Qf3+ Kg6 43. Qe4+ Kh5 44. Qf3+ Kg6 45. Qe4+) 35... Qa6 {[%emt 0:00:50]} (35... Qc7 $1 $17 {Threatens to win with ...c4.} 36. Qxd3 Bxe5) 36. Nd2 $11 {[%emt 0:00:04] Inhibits c4.} Qe6 {[%emt 0:01:42]} 37. Qd8+ {[%emt 0:00:14]} (37. Qxe6 $11 {remains equal.} fxe6 38. Nc4) 37... Bf8 $17 {[%emt 0:00:04]} 38. Qxd3 {[%emt 0:01:18]} Qxe5 {[%emt 0:00:08]} 39. Ne4 {[%emt 0:02:06]} Bg7 {[%emt 0:02:29]} (39... Qe6 $17 {And now ...c4 would win.} 40. Qd5 Qxd5 41. Nf6+ Kg7 42. Nxd5 c4) 40. Qd8+ $11 {[%emt 0:00:55]} Kh7 {[%emt 0:00:19]} 41. Qd3 {[%emt 0:02:51][%csl LRc5,LRg5] White threatens Nf6+ and mate.} f5 {[%emt 0:04:18]} 42. Nd6 {[%emt 0:10:24]} Kg6 {[%emt 0:00:33] White must now prevent ...Qe1+.} 43. a4 {[%emt 0:00:36][%cal Ba2a4,Ba4a5][%mdl 32]} Bf8 {[%emt 0:02:13]} 44. Nc4 {[%emt 0:00:33]} Qe1+ {[%emt 0:11:58]} 45. Qf1 {[%emt 0:00:25]} Qb4 {[%emt 0:00:10]} (45... Qe7 $11 {and Black stays safe.}) 46. a5 $18 {[%emt 0:00:06][%mdl 1024] White has strong compensation.} Bg7 {[%emt 0:00:17]} 47. Qe2 {[%emt 0:01:46]} Bd4 {[%emt 0:02:52] [#]} 48. Qe6+ {[%emt 0:02:38]} (48. a6 $1 $18 Kf6 49. Kh2) 48... Kg7 $2 {[%emt 0:01:02][%mdl 8192]} (48... Kh7 $11) 49. Nd6 {[%emt 0:02:01]} Qxa5 {[%emt 0:02:04]} 50. Nxf5+ {[%emt 0:02:31]} Kh7 {[%emt 0:02:57]} 51. Qxh6+ {[%emt 0:01:36]} Kg8 {[%emt 0:00:01]} 52. Qxg5+ {[%emt 0:00:08]} Kf7 {[%emt 0:00:32]} (52... Kf8 $18 53. Qe7+ (53. Qh6+ Kf7 $18) 53... Kg8 54. Qe8+ Kh7 55. Qf7+ Kh8) 53. Qe7+ {[%emt 0:00:37]} Kg6 {[%emt 0:00:29]} 54. Nh4+ {[%emt 0:00:24]} Kh6 {[%emt 0:00:51]} 55. Qe6+ {[%emt 0:05:51]} Kg7 $2 {[%emt 0:01:29]} (55... Kh7 $18 56. Qg6+ Kh8) 56. Nf5+ {[%emt 0:00:16]} Kf8 {[%emt 0:00:32]} 57. Qe7+ {[%emt 0:01:01]} Kg8 {[%emt 0:00:02]} 58. Qe8+ {[%emt 0:00:23]} Kh7 {[%emt 0:00:02]} 59. Qf7+ {[%emt 0:00:05]} Kh8 {[%emt 0:00:12]} 60. Ne7 {[%emt 0:00:45][%csl Ge7][%cal Rf7g8]} Bxf2+ {[%emt 0:01:56]} 61. Kxf2 {[%emt 0:00:09][%cal Re7g6]} Qd2+ {[%emt 0:00:05] [#]} 62. Kf3 $1 {[%emt 0:00:36][%cal Re7g6]} ({And not} 62. Kg1 Qe1+ 63. Kh2 Qg3+ 64. Kh1 Qe1+ 65. Kh2 Qg3+ 66. Kh1 Qe1+ 67. Kh2 $11) 62... Qd1+ {[%emt 0:00:25]} 63. Ke4 {[%emt 0:00:38][%cal Re7g6]} Qe2+ {[%emt 0:00:51]} 64. Kf5 {[%emt 0:00:18][%cal Re7g6]} Qc2+ {[%emt 0:00:14]} 65. Ke5 {[%emt 0:00:50][%csl Ge7][%cal Rf7g8]} Qb2+ {[%emt 0:01:13]} 66. Ke6 {[%emt 0:01:19][%cal Re7g6]} Qa2+ {[%emt 0:00:25]} 67. Nd5 Qxg2 {[%emt 0:01:00]} 68. Qh5+ {[%emt 0:00:35]} Kg7 {[%emt 0:00:24]} 69. Qe5+ {[%emt 0:00:11]} Kg8 {[%emt 0:02:53]} 70. Ne7+ {[%emt 0:00:52]} Kh7 {[%emt 0:00:15]} 71. Qh5+ {[%emt 0:00:22]} Kg7 {[%emt 0:00:04]} 72. Qe5+ {[%emt 0:01:40]} Kh7 {[%emt 0:00:09]} 73. Qf5+ {[%emt 0:00:04] White mates.} Kg7 {[%emt 0:01:08]} 74. Qf7+ {[%emt 0:00:08]} Kh6 {[%emt 0:00:09]} 75. Nf5+ {[%emt 0:00:04] Weighted Error Value: White=0.15 (very precise) /Black=0.62} 1-0

[Event "Czech Open-GM 2022"]
[Site "Pardubice"]
[Date "2022.07.26"]
[Round "5.13"]
[White "Neuman, Petr"]
[Black "Gnojek, Petr"]
[Result "0-1"]
[ECO "A10"]
[WhiteElo "2378"]
[BlackElo "2295"]
[Annotator "TA"]
[PlyCount "132"]
[EventDate "2022.07.22"]
[EventType "swiss"]
[EventCountry "CZE"]
[SourceTitle "playchess.com"]
[Source "ChessBase"]
[SourceQuality "1"]
[TimeControl "40/5400+30:1800+30"]

{[%evp 15,132,67,113,90,74,51,55,56,80,75,75,77,75,74,75,56,60,54,56,49,66,60,60,43,70,21,22,12,16,18,12,0,31,16,5,7,9,5,33,12,14,14,12,18,21,15,30,20,22,0,12,0,22,15,30,0,10,0,0,0,0,0,0,0,0,0,0,0,-4,-16,-16,-16,-6,-15,-15,-17,0,0,0,0,0,-14,-4,-52,0,0,0,0,0,-49,-47,-63,-8,-24,-8,-20,-16,-27,-35,-45,-39,-57,-43,-46,-56,-315,-308,-299,-302,-838,-801,-29990,-29991,-29991,0,-29986,-29987,-29989,-29990]} 1. c4 {[%emt 0:00:05]} g6 {[%emt 0:00:09]} 2. d4 {[%emt 0:00:10]} Bg7 {[%emt 0:00:08]} 3. e4 {[%emt 0:00:09]} d6 {[%emt 0:00:11]} 4. Nc3 {[%emt 0:00:09]} e5 {[%emt 0:00:20]} 5. d5 {[%emt 0:00:42]} Nf6 {[%emt 0:04:35]} 6. Bg5 {[%emt 0:02:30]} h6 {[%emt 0:08:40]} 7. Be3 {[%emt 0:01:41]} O-O {[%emt 0:05:02]} 8. f3 {[%emt 0:00:10]} Nh5 {[%emt 0:00:07]} (8... c6 $14 {deserves consideration.}) 9. Nge2 {[%emt 0:01:08] E81: King's Indian: Sämisch: 6th move deviations (including 6 Be3 c6).} f5 {[%emt 0:00:54]} 10. Qd2 {[%emt 0:00:06]} f4 {[%emt 0:05:43]} 11. Bf2 {[%emt 0:01:16] [#] White is slightly better.} Nd7 $146 {[%emt 0:01:24]} ({Predecessor:} 11... a6 12. b4 a5 13. b5 b6 14. Nc1 Bf6 15. Nd3 Bh4 16. a4 {½-½ (16) Rozumek,L (2000)-Dydel,A (2000) Wisla 2000}) 12. O-O-O {[%emt 0:00:14][%cal Be1c1,Bc1b1,Bb1b2][%mdl 32]} a5 {[%emt 0:00:52]} 13. Kb1 {[%emt 0:00:30]} b6 {[%emt 0:00:07]} 14. Nc1 {[%emt 0:00:30]} Nc5 {[%emt 0:13:02]} 15. b3 {[%emt 0:04:11]} Bd7 {[%emt 0:02:39]} 16. a3 {[%emt 0:04:04]} Qc8 {[%emt 0:03:39]} 17. Be2 {[%emt 0:00:12]} Kh7 {[%emt 0:03:24]} 18. Kb2 {[%emt 0:02:37]} Qd8 {[%emt 0:03:10]} 19. Rdg1 {[%emt 0:01:22]} Qe7 {[%emt 0:02:41]} 20. b4 {[%emt 0:05:26]} ({White should try} 20. g4 $14 Nf6 21. h4) 20... axb4 $11 {[%emt 0:00:34]} 21. axb4 {[%emt 0:00:06]} Na4+ {[%emt 0:00:14]} 22. Nxa4 {[%emt 0:00:05]} Rxa4 {[%emt 0:00:04]} (22... Bxa4 23. b5 $16) 23. Bd1 {[%emt 0:00:29]} Ra6 {[%emt 0:02:59]} 24. Ne2 {[%emt 0:01:49]} Rfa8 {[%emt 0:00:56] ...Ra2+ is the strong threat.} 25. Nc3 {[%emt 0:00:07] Prevents Ra2+.} Qd8 {[%emt 0:03:06]} 26. Be2 {[%emt 0:01:10]} Bf6 {[%emt 0:03:10]} 27. Ra1 {[%emt 0:00:50]} Rxa1 {[%emt 0:07:08]} 28. Rxa1 {[%emt 0:00:11]} Rxa1 {[%emt 0:00:05]} 29. Kxa1 {[%emt 0:00:05]} Bh4 {[%emt 0:00:07]} 30. Bg1 {[%emt 0:00:23]} Qa8+ {[%emt 0:02:45]} 31. Kb2 {[%emt 0:00:12]} Nf6 {[%emt 0:00:26]} 32. Bd1 {[%emt 0:02:31]} Qa6 {[%emt 0:02:55]} 33. Be2 {[%emt 0:01:36] Strongly threatening c5.} Qa8 {[%emt 0:00:51]} 34. Qd1 {[%emt 0:00:15]} Kg7 {[%emt 0:00:54]} 35. Na2 {[%emt 0:06:36][%cal Bc3a2,Ba2c1,Bc1b3][%mdl 32]} Kf7 {[%emt 0:02:26]} 36. Nc1 {[%emt 0:00:19]} Ke7 {[%emt 0:00:54]} 37. Nb3 {[%emt 0:01:10]} Qa4 {[%emt 0:00:46]} 38. Qd2 {[%emt 0:00:18]} h5 {[%emt 0:00:40]} 39. Qc3 {[%emt 0:03:36]} Ne8 {[%emt 0:04:24]} 40. c5 {[%emt 0:00:19]} bxc5 {[%emt 0:00:05]} 41. bxc5 {[%emt 0:30:04]} Bb5 {[%emt 0:31:28]} 42. cxd6+ {[%emt 0:10:35]} cxd6 {[%emt 0:00:07] The board is on fire.} 43. Bxb5 {[%emt 0:00:57]} Qxb5 {[%emt 0:00:05]} 44. Qc2 {[%emt 0:00:28]} Kd7 {[%emt 0:04:49]} 45. Bf2 {[%emt 0:01:31]} Bd8 {[%emt 0:04:36]} 46. Be1 {[%emt 0:08:01]} Nc7 {[%emt 0:06:28]} 47. Ba5 {[%emt 0:02:05]} Na6 {[%emt 0:00:48]} 48. Bxd8 $1 {[%emt 0:06:07]} Kxd8 {[%emt 0:00:04][%mdl 4096] Endgame KQN-KQN} 49. Kc3 {[%emt 0:06:38]} (49. Qc3 $11 {should be considered.}) 49... g5 {[%emt 0:00:00]} ({Better is} 49... Qb4+ $1 $15 50. Kd3 Nc7) 50. Qd3 {[%emt 0:00:00]} Qb4+ {[%emt 0:00:00]} 51. Kc2 {[%emt 0:00:00]} Qa4 {[%emt 0:00:00]} 52. Kd2 {[%emt 0:00:00]} (52. Kc3 $11) 52... g4 $36 {[%emt 0:00:00][%mdl 2048] Black has the initiative.} 53. Ke2 {[%emt 0:00:00]} Nc7 {[%emt 0:00:00]} (53... Nb4 54. Qc4 $11) (53... Ke7 $1 $15) 54. g3 $1 $11 {[%emt 0:00:00]} Nb5 {[%emt 0:00:00][%cal Oa4b3]} 55. Kf2 {[%emt 0:00:00]} Qa2+ {[%emt 0:00:00]} 56. Kg1 {[%emt 0:00:00] [#]} (56. Nd2 $2 Nd4 57. fxg4 hxg4 58. gxf4 Nf3 59. fxe5 Nxd2 60. exd6 Nxe4+ 61. Ke3 Nxd6 $17) 56... gxf3 $1 {[%emt 0:00:00]} 57. Qxf3 {[%emt 0:00:00]} Qb1+ {[%emt 0:00:00]} 58. Kg2 $1 {[%emt 0:00:00]} Qc2+ {[%emt 0:00:00]} 59. Kh3 {[%emt 0:00:00]} Nc3 {[%emt 0:00:00]} 60. gxf4 $2 {[%emt 0:00:00][%mdl 8192] [#]} Ne2 $1 $19 {[%emt 0:00:00] ( -> ...Ng1+)} ({Inferior is} 60... Qxb3 61. fxe5 dxe5 62. Qf6+ Kc7 63. Qxe5+ Kb7 64. Kh4 $11) ({Much less strong is} 60... Qxe4 61. Qxc3 Qxf4 62. Qg3 Qf1+ 63. Kh4 $18) (60... Nxe4 61. Na5 $17) 61. Kh4 {aiming for fxe5.} (61. Na1 Ng1+ 62. Kg3 h4+ 63. Kxh4 Nxf3+ 64. Kg3 Qxe4) 61... Nxf4 {[%emt 0:00:00]} 62. h3 $2 {[%emt 0:00:00]} (62. Qg3 Qxe4 63. Qg8+ Kc7 64. Qg7+ Kb6 65. Qg1+ Kb5 66. Qf1+ Nd3+ 67. Kxh5) 62... Ke7 {[%emt 0:00:00] And now ...Qh2 would win.} 63. Kg5 {[%emt 0:00:00]} Qc8 {[%emt 0:01:31]} 64. Kh4 {[%emt 0:00:00]} Qc2 {[%emt 0:02:11]} 65. Kg5 $1 {[%emt 0:00:00][%cal Ob3d4]} Qh2 {[%emt 0:01:22]} 66. Na5 {[%emt 0:02:21]} Qg1+ {[%emt 0:00:07] Weighted Error Value: White=0.17 (very precise) /Black=0.09 (flawless)} 0-1

[Event "Czech Open-GM 2022"]
[Site "Pardubice"]
[Date "2022.07.26"]
[Round "5.14"]
[White "Slovak, Kilian"]
[Black "Keller, Peter"]
[Result "1-0"]
[ECO "C67"]
[WhiteElo "2321"]
[BlackElo "2377"]
[Annotator "TA"]
[PlyCount "61"]
[EventDate "2022.07.22"]
[EventType "swiss"]
[EventCountry "CZE"]
[SourceTitle "playchess.com"]
[Source "ChessBase"]
[SourceQuality "1"]
[TimeControl "40/5400+30:1800+30"]

{[%evp 15,61,10,22,7,18,18,19,22,42,45,47,42,64,6,22,10,9,-8,0,0,0,0,-9,-7,0,-13,41,0,0,0,15,0,0,0,0,0,0,0,0,-3,94,91,327,326,319,318,662,622]} 1. e4 {[%emt 0:00:03]} e5 {[%emt 0:00:35]} 2. Nf3 {[%emt 0:00:09]} Nc6 {[%emt 0:00:06]} 3. Bb5 {[%emt 0:00:11]} Nf6 {[%emt 0:00:16]} 4. O-O {[%emt 0:00:10][%cal Bh1f1,Bf1e1,Be1e5][%mdl 32]} Nxe4 {[%emt 0:00:05]} 5. Re1 {[%emt 0:00:05]} Nd6 {[%emt 0:00:05]} 6. Nxe5 {[%emt 0:00:08]} Be7 {[%emt 0:00:07]} 7. Bf1 {[%emt 0:00:09]} Nxe5 {[%emt 0:00:10]} 8. Rxe5 {[%emt 0:00:07]} O-O {[%emt 0:00:05]} 9. Nc3 {[%emt 0:00:36] C67: Ruy Lopez: Berlin Defence: 4 0-0 Nxe4.} Ne8 {[%emt 0:11:14]} 10. Nd5 {[%emt 0:00:13]} Bd6 {[%emt 0:00:07]} 11. Re1 {[%emt 0:00:06] The position is equal.} Nf6 {[%emt 0:13:05]} ({But not} 11... Qh4 12. g3 Qd8 13. Ne3 $14) 12. Nxf6+ {[%emt 0:08:12]} Qxf6 {[%emt 0:00:03]} 13. d4 {[%emt 0:01:22] Against Bc5} b6 {[%emt 0:05:32] [#]} 14. c4 $146 {[%emt 0:16:44]} ({White should try} 14. c3 $14) ({Predecessor:} 14. Qg4 Bb7 15. Bd3 h6 16. Bd2 c5 17. Bc3 Qf4 18. Qxf4 Bxf4 19. dxc5 bxc5 20. Be5 Bxe5 21. Rxe5 {½-½ (42) Swiercz,D (2655)-Mamedyarov,S (2782) Saint Louis 2021}) 14... Bb7 $11 {[%emt 0:06:22]} 15. Be3 {[%emt 0:09:36]} (15. Qg4 {feels hotter.} h5 16. Qd1 Rfe8 17. Be3) 15... Rfe8 {[%emt 0:20:39]} 16. Rb1 {[%emt 0:07:48]} Bb4 {[%emt 0:08:01]} 17. Re2 {[%emt 0:01:33]} Qg6 {[%emt 0:03:45]} 18. d5 {[%emt 0:03:08]} c6 {[%emt 0:02:28]} 19. a3 {[%emt 0:02:51]} Be7 {[%emt 0:11:58]} 20. Re1 {[%emt 0:17:09]} Bg5 {[%emt 0:02:28]} ({Better is} 20... cxd5 $11 21. cxd5 Qf5) 21. Bd3 {[%emt 0:08:03]} Qh6 {[%emt 0:01:18][%cal Rg5e3]} 22. Bxg5 {[%emt 0:05:28]} Qxg5 {[%emt 0:02:21]} 23. Qf3 {[%emt 0:01:32]} cxd5 {[%emt 0:06:33]} 24. Qh3 $1 {[%emt 0:00:20][%csl LRd7,LRh7]} g6 {[%emt 0:00:17]} 25. Qxd7 $40 {[%emt 0:11:28][%mdl 128] White mounts an attack.} Rxe1+ {[%emt 0:00:07]} 26. Rxe1 {[%emt 0:00:01]} Ba6 {[%emt 0:03:42]} 27. Qa4 {[%emt 0:05:38]} Qd2 {[%emt 0:01:01]} (27... Bxc4 $11 28. Bxc4 dxc4) 28. Rd1 $16 {[%emt 0:00:05] White is more active.} Qxb2 {[%emt 0:01:26] [#]} 29. Qxa6 $18 {[%emt 0:00:05]} Qb3 {[%emt 0:00:03]} 30. Be2 {[%emt 0:00:22]} Re8 $2 {[%emt 0:00:42]} (30... dxc4 31. Qxc4 Qxc4 32. Bxc4 Re8) 31. cxd5 {[%emt 0:00:29] Weighted Error Value: White=0.09 (flawless) /Black=0.51} 1-0

[Event "Czech Open-GM 2022"]
[Site "Pardubice"]
[Date "2022.07.26"]
[Round "5.15"]
[White "Sorensen, Hampus"]
[Black "Aradhya, Garg"]
[Result "1/2-1/2"]
[ECO "C78"]
[WhiteElo "2376"]
[BlackElo "2229"]
[Annotator "TA"]
[PlyCount "101"]
[EventDate "2022.07.22"]
[EventType "swiss"]
[EventCountry "CZE"]
[SourceTitle "playchess.com"]
[Source "ChessBase"]
[SourceQuality "1"]
[TimeControl "40/5400+30:1800+30"]

{[%evp 16,101,47,10,19,19,8,0,36,23,65,69,70,34,38,38,142,142,148,137,137,129,141,120,121,128,129,120,148,148,161,143,143,58,40,70,64,45,70,60,85,70,69,69,78,27,27,27,33,26,72,70,95,80,95,0,0,0,0,0,0,0,0,0,90,0,0,0,8,0,0,0,0,0,0,0,0,0,0,0,0,177,0,0,0,0,0,0]} 1. e4 {[%emt 0:01:01]} e5 {[%emt 0:00:03]} 2. Nf3 {[%emt 0:00:31]} Nc6 {[%emt 0:00:55]} 3. Bb5 {[%emt 0:00:12][%cal Bf1b5,Bb5a4,Ba4b3][%mdl 32]} a6 {[%emt 0:00:05]} 4. Ba4 {[%emt 0:00:05]} Nf6 {[%emt 0:00:40]} 5. O-O {[%emt 0:00:15]} b5 {[%emt 0:00:04]} 6. Bb3 {[%emt 0:00:19]} Bc5 {[%emt 0:00:02]} 7. c3 {[%emt 0:01:15]} d6 {[%emt 0:00:06]} 8. d4 {[%emt 0:00:44]} Bb6 {[%emt 0:00:02]} 9. Be3 {[%emt 0:02:12]} O-O {[%emt 0:00:52] C78: Ruy Lopez: Archangelsk and Möller Defences.} 10. Nbd2 {[%emt 0:01:36]} Rb8 {[%emt 0:00:19]} 11. h3 {[%emt 0:06:24]} h6 {[%emt 0:17:06]} 12. Re1 {[%emt 0:04:29] [#]} exd4 $146 {[%emt 0:01:59]} ({Predecessor:} 12... Re8 13. a3 Bd7 14. Bc2 a5 15. Bd3 a4 16. Qc2 Na5 17. Rad1 c5 18. dxe5 dxe5 {½-½ (48) Nihal,S (2652)-Maghsoodloo,P (2701) Belgrade 2022}) 13. cxd4 {[%emt 0:05:41]} (13. Nxd4 Nxd4 14. cxd4 Bb7 $11) 13... Nb4 {[%emt 0:00:18]} 14. Nf1 {[%emt 0:07:44]} c5 $1 {[%emt 0:00:18]} 15. a3 {[%emt 0:00:33][%cal Ba2a3,Ba3b4][%mdl 32]} c4 {[%emt 0:05:07]} (15... Nc6 $1 $14) 16. axb4 $16 {[%emt 0:02:39] Strongly threatening Bc2.} cxb3 {[%emt 0:00:02]} 17. N3d2 {[%emt 0:05:12]} a5 {[%emt 0:05:32]} 18. Qxb3 {[%emt 0:03:39]} (18. Nxb3 a4 $16) 18... Re8 {[%emt 0:09:12]} 19. d5 {[%emt 0:05:35]} a4 {[%emt 0:19:16]} 20. Qd3 {[%emt 0:00:58]} Nd7 {[%emt 0:00:05]} 21. Bxb6 {[%emt 0:02:51]} Rxb6 {[%emt 0:00:36]} 22. Nf3 {[%emt 0:08:08] White is more active.} Qf6 {[%emt 0:02:11]} 23. Re2 {[%emt 0:01:48]} Rb8 {[%emt 0:03:15]} 24. Ne3 {[%emt 0:06:14]} (24. Rc1 $16) 24... Ne5 {[%emt 0:05:27]} 25. Nxe5 {[%emt 0:00:14]} Qxe5 {[%emt 0:00:03]} 26. f3 {[%emt 0:11:30]} f5 {[%emt 0:00:20][%cal Rf5e4]} 27. Nd1 $1 {[%emt 0:00:36]} Qg3 {[%emt 0:11:37]} 28. Nf2 {[%emt 0:02:05]} ({Much weaker is} 28. exf5 $6 Bxf5 29. Qd2 Bxh3 $11) 28... Bd7 {[%emt 0:01:40]} 29. Rc1 {[%emt 0:05:41]} Rbc8 {[%emt 0:03:12] Prevents Rc7.} 30. Rxc8 {[%emt 0:05:15]} (30. Rcc2 $16) 30... Rxc8 $11 {[%emt 0:00:01]} 31. Rc2 {[%emt 0:00:56] Against Rc1+} ({Reject} 31. exf5 Rc1+ 32. Nd1 Bxf5 $1 $15) 31... Rxc2 {[%emt 0:00:27]} 32. Qxc2 {[%emt 0:00:01][%mdl 4096] Endgame Qc7 is the strong threat. KQB-KQN} Qe5 {[%emt 0:00:14] [#]} (32... fxe4 $11 33. Qxe4 Qg5) 33. Qd2 $1 $16 {[%emt 0:00:45]} Be8 {[%emt 0:01:56]} 34. exf5 {[%emt 0:04:41]} Bf7 {[%emt 0:01:35]} 35. Ng4 {[%emt 0:00:02]} (35. f6 $16) 35... Qxf5 $11 {[%emt 0:00:23]} 36. Ne3 {[%emt 0:00:03]} Qe5 {[%emt 0:00:50]} 37. Kf2 {[%emt 0:00:17]} h5 {[%emt 0:00:19] Inhibits Ng4.} 38. h4 {[%emt 0:03:28]} Kf8 {[%emt 0:03:43]} 39. g3 {[%emt 0:01:14]} Ke7 {[%emt 0:01:11] [#]} (39... Kg8 $11) 40. Kg2 {[%emt 0:01:15]} ({Better is} 40. f4 $1 $16 {[%cal Rf4e5]} Qf6 41. Nd1) 40... Kd8 {[%emt 0:00:25]} 41. Kf2 {[%emt 0:05:27]} Bg8 {[%emt 0:03:43]} 42. Kg2 {[%emt 0:21:32]} Kc7 {[%emt 0:04:38]} 43. Kh3 {[%emt 0:00:39]} Kb7 {[%emt 0:01:19]} 44. Qd3 {[%emt 0:03:05]} Kb6 {[%emt 0:01:20]} 45. Qe4 {[%emt 0:02:28] aiming for Qxe5.} Qxb2 {[%emt 0:03:31] White must now prevent ...Qe5.} 46. Qe8 {[%emt 0:00:37][%csl LRg8,LRh5] And now Qb8+ would win.} Qc1 {[%emt 0:00:06][%cal Rc1h1]} 47. Qb8+ {[%emt 0:00:32]} Ka6 {[%emt 0:00:01][%cal Rc1h1]} 48. Qa8+ {[%emt 0:00:33]} Kb6 {[%emt 0:00:01][%cal Rc1h1]} 49. Qb8+ {[%emt 0:00:41] The position is equal.} Ka6 {[%emt 0:00:02][%cal Rc1h1]} 50. Qa8+ {[%emt 0:00:52]} Kb6 {[%emt 0:00:00][%cal Rc1h1]} 51. Qd8+ {Black defended with fortune.  Weighted Error Value: White=0.13 (very precise) /Black=0.15 (very precise)} 1/2-1/2

[Event "Czech Open-GM 2022"]
[Site "Pardubice"]
[Date "2022.07.26"]
[Round "5.16"]
[White "Savitha Shri B"]
[Black "Luch, Michal"]
[Result "1/2-1/2"]
[ECO "B32"]
[WhiteElo "2278"]
[BlackElo "2375"]
[Annotator "TA"]
[PlyCount "80"]
[EventDate "2022.07.22"]
[EventType "swiss"]
[EventCountry "CZE"]
[SourceTitle "playchess.com"]
[Source "ChessBase"]
[SourceQuality "1"]
[TimeControl "40/5400+30:1800+30"]

{[%evp 14,80,39,-2,4,-14,-29,-24,-23,-9,-5,-81,-82,-92,-91,-90,-86,-94,-88,-94,-85,-82,-88,-81,-83,-98,-64,-69,-49,-75,-14,-20,-14,-22,8,3,38,47,83,77,160,114,225,218,286,284,268,228,138,108,89,0,0,0,0,0,0,0,0,0,0,0,0,0,0,0,0,0,0]} 1. e4 c5 2. Nf3 Nc6 3. d4 cxd4 4. Nxd4 Qb6 5. Nb3 Nf6 6. Nc3 e6 7. Be3 Qc7 8. f3 Bb4 $1 {8...Bb4 is better than 8...a6. B33: Sicilian: Pelikan and Sveshnikov Variations.} 9. a3 Bxc3+ 10. bxc3 d5 {Black has an edge.} 11. exd5 Nxd5 12. Bd2 {[#]} (12. Bc5 $1 $11 {remains equal.}) 12... Ne5 $146 ({Predecessor:} 12... O-O 13. Bd3 Ne5 14. Qe2 Nxc3 15. Qe3 Nd5 16. Qe4 Nxd3+ 17. cxd3 Bd7 18. Rc1 Qb6 {0-1 (31) Goettin,G (2017)-Cuartas,J (2495) Sitges 2008}) 13. f4 Nc4 ({Much worse is} 13... Nxc3 $6 14. Qh5 Ng6 15. Qc5 $15) 14. Bxc4 Qxc4 15. Qf3 b6 {Inhibits Na5.} 16. Qd3 Ba6 17. Qxc4 Bxc4 18. O-O-O O-O 19. Rhe1 Rfc8 20. Nd4 g6 21. g4 $1 Rc7 (21... Nf6 $17 22. h3 Bd5) 22. f5 $11 exf5 23. gxf5 Kg7 24. h4 {[%cal Bh2h4,Bh4h5][%mdl 32]} Kg8 25. h5 g5 (25... gxh5 $2 26. Rg1+ Kh8 27. Bh6 $18) 26. Bxg5 f6 ({Black should play} 26... h6 27. Bxh6 Nxc3) 27. Bd2 (27. Bh4 $142) 27... Kf7 {[#]} (27... b5 $16) 28. Ne6 $1 $18 Rcc8 29. Bh6 b5 30. Rd4 Nb6 31. Bf4 {And now Nc7 would win. 0x0.001ebf27c806dp-1022s more active pieces.} Re8 {[%cal Rc4e6]} 32. Bc7 (32. Rd6 $16) 32... Bxe6 $11 {The position is equal.} 33. fxe6+ Rxe6 34. Rg1 Rae8 35. Bxb6 axb6 {KRR-KRR} 36. Kb2 Re1 37. Rg3 R1e3 38. Rg1 Re1 39. Rg3 R1e3 40. Rg1 Re1 {Weighted Error Value: White=0.10 (very precise) /Black=0.19 (very precise)} 1/2-1/2